[Event "Championnat d'Europe de Blitz"]
[Date "2024.12.09"]
[White "Bernadskiy, Vitaliy"]
[Black "Ghimpu, Samuel-Timotei"]
[WhiteElo "2546"]
[BlackElo "2475"]
[Round "11.22"]
[Result "1-0"]
[TimeControl "180+2"]

1. Nf3 {[%clk 00:03:03]} d5 {[%emt 00:00:03] [%clk 00:03:02]} 2. d3 {[%emt
00:00:01] [%clk 00:03:03]} Nf6 {[%emt 00:00:07] [%clk 00:02:58]} 3. g3 {[%emt
00:00:01] [%clk 00:03:04]} e6 {[%emt 00:00:13] [%clk 00:02:47]} 4. Bg2 {[%emt
00:00:02] [%clk 00:03:04]} b5 {[%emt 00:00:08] [%clk 00:02:41]} 5. O-O {[%emt
00:00:04] [%clk 00:03:02]} Bb7 {[%emt 00:00:04] [%clk 00:02:39]} 6. c4 {[%emt
00:00:12] [%clk 00:02:52]} c6 {[%emt 00:00:17] [%clk 00:02:25]} 7. Qc2 {[%emt
00:00:32] [%clk 00:02:21]} Nbd7 {[%emt 00:00:05] [%clk 00:02:23]} 8. b3 {[%emt
00:00:03] [%clk 00:02:20]} Bd6 {[%emt 00:00:14] [%clk 00:02:10]} 9. Bb2 {[%emt
00:00:02] [%clk 00:02:20]} e5 {[%emt 00:00:08] [%clk 00:02:04]} 10. Nh4 {[%emt
00:00:04] [%clk 00:02:17]} O-O {[%emt 00:00:10] [%clk 00:01:57]} 11. Nf5 {[%emt
00:00:02] [%clk 00:02:17]} Bc7 {[%emt 00:00:14] [%clk 00:01:45]} 12. Ba3 {[%emt
00:00:31] [%clk 00:01:48]} Re8 {[%emt 00:00:01] [%clk 00:01:46]} 13. Nd6 {[%emt
00:00:02] [%clk 00:01:48]} Bxd6 {[%emt 00:00:02] [%clk 00:01:46]} 14. Bxd6
{[%emt 00:00:01] [%clk 00:01:48]} c5 {[%emt 00:00:07] [%clk 00:01:41]} 15. b4
{[%emt 00:00:31] [%clk 00:01:20]} Qb6 {[%emt 00:00:21] [%clk 00:01:23]} 16. bxc5
{[%emt 00:00:02] [%clk 00:01:19]} Nxc5 {[%emt 00:00:01] [%clk 00:01:23]} 17.
Bxc5 {[%emt 00:00:03] [%clk 00:01:18]} Qxc5 {[%emt 00:00:02] [%clk 00:01:24]}
18. Nd2 {[%clk 00:01:19]} e4 {[%emt 00:00:10] [%clk 00:01:16]} 19. Nb3 {[%emt
00:00:04] [%clk 00:01:17]} Qb4 {[%emt 00:00:54] [%clk 00:00:24]} 20. cxb5 {[%emt
00:00:42] [%clk 00:00:37]} Rac8 {[%emt 00:00:11] [%clk 00:00:15]} 21. Qd2 {[%emt
00:00:01] [%clk 00:00:37]} Qxb5 {[%emt 00:00:05] [%clk 00:00:13]} 22. Rab1
{[%emt 00:00:02] [%clk 00:00:37]} Qd7 {[%emt 00:00:06] [%clk 00:00:09]} 23. Qa5
{[%emt 00:00:03] [%clk 00:00:36]} Qc7 {[%emt 00:00:05] [%clk 00:00:07]} 24. Qxa7
{[%emt 00:00:06] [%clk 00:00:31]} Ra8 {[%emt 00:00:01] [%clk 00:00:08]} 25. Qc5
{[%clk 00:00:32]} Qd8 {[%emt 00:00:05] [%clk 00:00:05]} 26. Nd4 {[%emt 00:00:04]
[%clk 00:00:30]} Ba6 {[%emt 00:00:01] [%clk 00:00:06]} 27. dxe4 {[%emt 00:00:11]
[%clk 00:00:21]} Nxe4 {[%emt 00:00:03] [%clk 00:00:05]} 28. Bxe4 {[%emt
00:00:01] [%clk 00:00:22]} dxe4 {[%emt 00:00:02] [%clk 00:00:05]} 29. Rfd1
{[%emt 00:00:03] [%clk 00:00:21]} Qf6 {[%emt 00:00:02] [%clk 00:00:05]} 30. Rb6
{[%emt 00:00:03] [%clk 00:00:21]} Qe5 {[%emt 00:00:02] [%clk 00:00:04]} 31. Qxe5
{[%emt 00:00:02] [%clk 00:00:21]} Rxe5 {[%clk 00:00:05]} 32. Nc6 {[%emt
00:00:06] [%clk 00:00:17]} Ree8 {[%emt 00:00:02] [%clk 00:00:05]} 33. Rd2 {[%emt
00:00:03] [%clk 00:00:16]} h6 {[%emt 00:00:03] [%clk 00:00:05]} 34. a4 {[%emt
00:00:04] [%clk 00:00:14]} e3 {[%emt 00:00:02] [%clk 00:00:04]} 35. fxe3 {[%emt
00:00:02] [%clk 00:00:14]} Rxe3 {[%clk 00:00:05]} 36. Kf2 {[%emt 00:00:03]} Ra3
{[%clk 00:00:06]} 37. a5 {[%emt 00:00:03] [%clk 00:00:13]} Bc4 {[%emt 00:00:01]
[%clk 00:00:07]} 38. Rdb2 {[%emt 00:00:04] [%clk 00:00:12]} Be6 {[%emt 00:00:02]
[%clk 00:00:07]} 39. Rb8+ {[%emt 00:00:01] [%clk 00:00:12]} Rxb8 {[%emt
00:00:01] [%clk 00:00:08]} 40. Rxb8+ {[%emt 00:00:01] [%clk 00:00:13]} Kh7
{[%clk 00:00:09]} 41. Rb6 {[%emt 00:00:10] [%clk 00:00:05]} Bd5 {[%emt 00:00:03]
[%clk 00:00:08]} 42. a6 {[%emt 00:00:03] [%clk 00:00:05]} Bc4 {[%emt 00:00:02]
[%clk 00:00:07]} 43. Nb4 {[%emt 00:00:02] [%clk 00:00:05]} Rb3 {[%emt 00:00:03]
[%clk 00:00:06]} 44. a7 {[%emt 00:00:02] [%clk 00:00:05]} Bd5 {[%clk 00:00:08]}
45. Nxd5 {[%emt 00:00:02] [%clk 00:00:06]} 1-0

[Site "Europe Echecs"]

[Event "Championnat d'Europe de Blitz"]
[Date "2024.12.09"]
[White "Pancevski, Filip"]
[Black "Danov, Lyubomir"]
[WhiteElo "2420"]
[BlackElo "2297"]
[Round "11.23"]
[Result "1-0"]
[TimeControl "180+2"]

1. e4 {[%emt 00:11:39] [%clk 00:03:03]} c6 {[%emt 00:00:02] [%clk 00:03:03]} 2.
d4 {[%emt 00:00:10] [%clk 00:02:55]} d5 {[%clk 00:03:04]} 3. e5 {[%emt 00:00:01]
[%clk 00:02:56]} Bf5 {[%clk 00:03:04]} 4. Nd2 {[%clk 00:02:58]} e6 {[%emt
00:00:05] [%clk 00:03:03]} 5. Nb3 {[%emt 00:00:01] [%clk 00:02:59]} Nd7 {[%emt
00:00:03] [%clk 00:03:02]} 6. Nf3 {[%emt 00:00:05] [%clk 00:02:55]} a6 {[%emt
00:00:04] [%clk 00:03:01]} 7. Be2 {[%emt 00:00:06] [%clk 00:02:50]} h6 {[%emt
00:00:04] [%clk 00:02:59]} 8. O-O {[%emt 00:00:04] [%clk 00:02:48]} Ne7 {[%emt
00:00:02] [%clk 00:02:58]} 9. a4 {[%emt 00:00:04] [%clk 00:02:47]} Nc8 {[%emt
00:00:18] [%clk 00:02:42]} 10. a5 {[%emt 00:00:10] [%clk 00:02:39]} Be7 {[%emt
00:00:06] [%clk 00:02:39]} 11. Ne1 {[%emt 00:00:03] [%clk 00:02:38]} O-O {[%emt
00:00:02] [%clk 00:02:38]} 12. Bd3 {[%emt 00:00:01] [%clk 00:02:39]} Bxd3 {[%emt
00:00:08] [%clk 00:02:32]} 13. Nxd3 {[%emt 00:00:01] [%clk 00:02:40]} f6 {[%emt
00:00:06] [%clk 00:02:28]} 14. Qg4 {[%emt 00:00:32] [%clk 00:02:10]} fxe5 {[%emt
00:00:20] [%clk 00:02:10]} 15. Qxe6+ {[%emt 00:00:04] [%clk 00:02:08]} Kh8
{[%emt 00:00:01] [%clk 00:02:11]} 16. dxe5 {[%emt 00:00:06] [%clk 00:02:05]} Na7
{[%emt 00:00:05] [%clk 00:02:08]} 17. Bxh6 {[%emt 00:00:16] [%clk 00:01:50]}
gxh6 {[%emt 00:00:04] [%clk 00:02:05]} 18. Qxh6+ {[%clk 00:01:51]} Kg8 {[%emt
00:00:02] [%clk 00:02:06]} 19. Qg6+ {[%emt 00:00:01] [%clk 00:01:53]} Kh8 {[%emt
00:00:01] [%clk 00:02:07]} 20. Qh6+ {[%emt 00:00:05] [%clk 00:01:50]} Kg8 {[%emt
00:00:01] [%clk 00:02:08]} 21. Ra4 {[%emt 00:00:01] [%clk 00:01:51]} Bf6 {[%emt
00:00:51] [%clk 00:01:19]} 22. Rg4+ {[%emt 00:00:30] [%clk 00:01:23]} Kf7 {[%emt
00:00:01] [%clk 00:01:19]} 23. exf6 {[%emt 00:00:09] [%clk 00:01:16]} Nxf6
{[%emt 00:00:01] [%clk 00:01:20]} 24. Rg7+ {[%emt 00:00:08] [%clk 00:01:10]} 1-0

[Site "Europe Echecs"]

[Event "Championnat d'Europe de Blitz"]
[Date "2024.12.09"]
[White "Bulmaga, Irina"]
[Black "Gavrilescu, David"]
[WhiteElo "2386"]
[BlackElo "2549"]
[Round "11.24"]
[Result "0-1"]
[TimeControl "180+2"]

1. e4 {[%emt 00:08:53] [%clk 00:03:03]} c5 {[%clk 00:03:03]} 2. c3 {[%clk
00:03:04]} d5 {[%emt 00:00:02] [%clk 00:03:04]} 3. exd5 {[%emt 00:00:01] [%clk
00:03:04]} Nf6 {[%emt 00:00:02] [%clk 00:03:04]} 4. Bb5+ {[%emt 00:00:01] [%clk
00:03:05]} Nbd7 {[%emt 00:00:02] [%clk 00:03:05]} 5. c4 {[%emt 00:00:01] [%clk
00:03:05]} a6 {[%emt 00:00:07] [%clk 00:03:00]} 6. Bxd7+ {[%emt 00:00:02] [%clk
00:03:05]} Bxd7 {[%emt 00:00:02] [%clk 00:03:01]} 7. Nc3 {[%emt 00:00:02] [%clk
00:03:05]} e6 {[%emt 00:00:02] [%clk 00:03:00]} 8. Qe2 {[%clk 00:03:06]} Be7
{[%emt 00:00:03] [%clk 00:03:00]} 9. dxe6 {[%emt 00:00:04] [%clk 00:03:04]} Bxe6
{[%emt 00:00:02] [%clk 00:03:00]} 10. d3 {[%emt 00:00:05] [%clk 00:03:00]} O-O
{[%emt 00:00:04] [%clk 00:02:59]} 11. Nf3 {[%emt 00:00:01] [%clk 00:03:01]} Bf5
{[%emt 00:00:11] [%clk 00:02:49]} 12. Ne4 {[%emt 00:00:11] [%clk 00:02:51]} b5
{[%emt 00:00:32] [%clk 00:02:20]} 13. Ne5 {[%emt 00:00:57] [%clk 00:01:56]} Re8
{[%emt 00:00:51] [%clk 00:01:30]} 14. Nc6 {[%emt 00:00:21] [%clk 00:01:38]} Qc7
{[%emt 00:00:09] [%clk 00:01:24]} 15. Nxe7+ {[%emt 00:00:02] [%clk 00:01:37]}
Qxe7 {[%emt 00:00:02] [%clk 00:01:24]} 16. O-O {[%emt 00:00:07] [%clk 00:01:32]}
bxc4 {[%emt 00:00:05] [%clk 00:01:21]} 17. Qf3 {[%emt 00:00:10] [%clk 00:01:24]}
cxd3 {[%emt 00:00:13] [%clk 00:01:10]} 18. Nxf6+ {[%emt 00:00:05] [%clk
00:01:20]} Qxf6 {[%emt 00:00:02] [%clk 00:01:11]} 19. Be3 {[%emt 00:00:10] [%clk
00:01:12]} c4 {[%emt 00:00:10] [%clk 00:01:04]} 20. Rac1 {[%emt 00:00:17] [%clk
00:00:56]} Rac8 {[%emt 00:00:02] [%clk 00:01:04]} 21. Rc3 {[%emt 00:00:03] [%clk
00:00:55]} Qg6 {[%emt 00:00:34] [%clk 00:00:32]} 22. Qg3 {[%emt 00:00:15] [%clk
00:00:43]} Qxg3 {[%emt 00:00:10] [%clk 00:00:24]} 23. hxg3 {[%emt 00:00:01]
[%clk 00:00:44]} Bg4 {[%emt 00:00:03] [%clk 00:00:23]} 24. Rfc1 {[%emt 00:00:30]
[%clk 00:00:15]} Rxe3 {[%emt 00:00:05] [%clk 00:00:21]} 25. fxe3 {[%emt
00:00:03] [%clk 00:00:14]} d2 {[%emt 00:00:01] [%clk 00:00:22]} 26. Rf1 {[%emt
00:00:04] [%clk 00:00:12]} d1=Q {[%emt 00:00:05]} 27. Rxd1 {[%clk 00:00:13]}
Bxd1 {[%emt 00:00:02] [%clk 00:00:20]} 28. b3 {[%emt 00:00:01] [%clk 00:00:13]}
Be2 {[%emt 00:00:02] [%clk 00:00:20]} 29. Kf2 {[%emt 00:00:02] [%clk 00:00:13]}
Bd3 {[%emt 00:00:01] [%clk 00:00:21]} 30. bxc4 {[%emt 00:00:02] [%clk 00:00:14]}
Bxc4 {[%emt 00:00:01] [%clk 00:00:21]} 31. e4 {[%emt 00:00:02] [%clk 00:00:14]}
f6 {[%clk 00:00:22]} 32. Ke3 {[%emt 00:00:01] [%clk 00:00:15]} Be6 {[%emt
00:00:05] [%clk 00:00:19]} 33. Ra3 {[%emt 00:00:02] [%clk 00:00:15]} Rc2 {[%emt
00:00:02] [%clk 00:00:19]} 34. Rxa6 {[%emt 00:00:03] [%clk 00:00:15]} Bxa2
{[%emt 00:00:01] [%clk 00:00:20]} 35. Kf3 {[%emt 00:00:04] [%clk 00:00:12]} Kf7
{[%emt 00:00:01] [%clk 00:00:20]} 36. Ra7+ {[%emt 00:00:03] [%clk 00:00:12]} Kg6
{[%clk 00:00:21]} 37. Ra5 {[%emt 00:00:02] [%clk 00:00:13]} h5 {[%emt 00:00:01]
[%clk 00:00:22]} 38. e5 {[%emt 00:00:02] [%clk 00:00:14]} Bc4 {[%emt 00:00:08]
[%clk 00:00:15]} 39. exf6 {[%emt 00:00:02] [%clk 00:00:14]} gxf6 {[%emt
00:00:02] [%clk 00:00:16]} 40. Ra7 {[%emt 00:00:06] [%clk 00:00:09]} Bd5+ {[%emt
00:00:02] [%clk 00:00:16]} 41. Kf4 {[%emt 00:00:01] [%clk 00:00:10]} Rf2+ {[%emt
00:00:02] [%clk 00:00:16]} 42. Ke3 {[%emt 00:00:02] [%clk 00:00:11]} Rxg2 {[%emt
00:00:01] [%clk 00:00:17]} 43. Ra5 {[%emt 00:00:03] [%clk 00:00:09]} Rxg3+
{[%emt 00:00:03] [%clk 00:00:16]} 44. Kf2 {[%clk 00:00:11]} Rg5 {[%emt 00:00:01]
[%clk 00:00:16]} 0-1

[Site "Europe Echecs"]

[Event "Championnat d'Europe de Blitz"]
[Date "2024.12.09"]
[White "Vuckovic, Zarko"]
[Black "Navara, David"]
[WhiteElo "2334"]
[BlackElo "2665"]
[Round "11.25"]
[Result "0-1"]
[TimeControl "180+2"]

1. e4 {[%clk 00:03:03]} c6 {[%emt 00:00:02] [%clk 00:03:03]} 2. Nf3 {[%emt
00:00:01] [%clk 00:03:03]} d5 {[%emt 00:00:01] [%clk 00:03:05]} 3. d3 {[%emt
00:00:01] [%clk 00:03:05]} g6 {[%emt 00:00:04] [%clk 00:03:03]} 4. e5 {[%emt
00:00:01] [%clk 00:03:06]} f6 {[%emt 00:00:01] [%clk 00:03:03]} 5. exf6 {[%emt
00:00:02] [%clk 00:03:06]} exf6 {[%emt 00:00:03] [%clk 00:03:02]} 6. d4 {[%clk
00:03:07]} Ne7 {[%emt 00:00:04] [%clk 00:03:00]} 7. h3 {[%emt 00:00:14] [%clk
00:02:55]} Bg7 {[%emt 00:00:04] [%clk 00:02:58]} 8. Be2 {[%emt 00:00:01] [%clk
00:02:57]} O-O {[%emt 00:00:06] [%clk 00:02:54]} 9. O-O {[%emt 00:00:02] [%clk
00:02:57]} Re8 {[%emt 00:00:04] [%clk 00:02:52]} 10. Re1 {[%emt 00:00:05] [%clk
00:02:54]} Be6 {[%emt 00:00:13] [%clk 00:02:41]} 11. a4 {[%emt 00:00:40] [%clk
00:02:16]} a5 {[%emt 00:00:01] [%clk 00:02:42]} 12. Ra3 {[%clk 00:02:17]} Nf5
{[%emt 00:00:10] [%clk 00:02:33]} 13. Bf4 {[%emt 00:00:02] [%clk 00:02:17]} Na6
{[%emt 00:00:12] [%clk 00:02:23]} 14. Bd3 {[%emt 00:00:07] [%clk 00:02:12]} Nb4
{[%emt 00:00:03] [%clk 00:02:23]} 15. Bf1 {[%emt 00:00:08] [%clk 00:02:06]} Qd7
{[%emt 00:00:05] [%clk 00:02:19]} 16. Nbd2 {[%emt 00:00:10] [%clk 00:01:59]} g5
{[%emt 00:00:13] [%clk 00:02:09]} 17. Bh2 {[%clk 00:01:59]} h5 {[%emt 00:00:01]
[%clk 00:02:10]} 18. c3 {[%emt 00:00:05] [%clk 00:01:57]} Na6 {[%clk 00:02:10]}
19. Kh1 {[%emt 00:00:18] [%clk 00:01:40]} Re7 {[%emt 00:00:11] [%clk 00:02:01]}
20. Ra1 {[%emt 00:00:02] [%clk 00:01:41]} Rae8 {[%emt 00:00:01] [%clk 00:02:02]}
21. Bd3 {[%emt 00:00:03] [%clk 00:01:40]} Nh6 {[%emt 00:00:49] [%clk 00:01:15]}
22. Nb3 {[%emt 00:00:04] [%clk 00:01:38]} Bf5 {[%emt 00:00:03] [%clk 00:01:14]}
23. Bxa6 {[%emt 00:00:20] [%clk 00:01:20]} bxa6 {[%emt 00:00:02] [%clk
00:01:14]} 24. Nc5 {[%emt 00:00:01] [%clk 00:01:21]} Rxe1+ {[%emt 00:00:06]
[%clk 00:01:09]} 25. Nxe1 {[%emt 00:00:02] [%clk 00:01:22]} Qf7 {[%emt 00:00:03]
[%clk 00:01:08]} 26. Nc2 {[%emt 00:00:08] [%clk 00:01:15]} Bc8 {[%emt 00:00:22]
[%clk 00:00:49]} 27. Qd2 {[%emt 00:00:11] [%clk 00:01:07]} g4 {[%emt 00:00:06]
[%clk 00:00:45]} 28. Bf4 {[%emt 00:00:04] [%clk 00:01:04]} gxh3 {[%emt 00:00:07]
[%clk 00:00:39]} 29. gxh3 {[%emt 00:00:13] [%clk 00:00:53]} Nf5 {[%emt 00:00:04]
[%clk 00:00:37]} 30. Rg1 {[%emt 00:00:05] [%clk 00:00:51]} Kh8 {[%emt 00:00:04]
[%clk 00:00:35]} 31. Bg3 {[%emt 00:00:05] [%clk 00:00:47]} h4 {[%emt 00:00:21]
[%clk 00:00:17]} 32. Bf4 {[%emt 00:00:01] [%clk 00:00:47]} Qh5 {[%emt 00:00:02]
[%clk 00:00:18]} 33. Rg4 {[%emt 00:00:23] [%clk 00:00:26]} Nh6 {[%emt 00:00:02]
[%clk 00:00:17]} 34. f3 {[%emt 00:00:11] [%clk 00:00:17]} Nxg4 {[%emt 00:00:03]
[%clk 00:00:17]} 35. hxg4 {[%emt 00:00:01] [%clk 00:00:18]} Qg6 {[%emt 00:00:02]
[%clk 00:00:16]} 36. Qf2 {[%emt 00:00:06] [%clk 00:00:15]} Kg8 {[%emt 00:00:04]
[%clk 00:00:13]} 37. Ne3 {[%emt 00:00:02] [%clk 00:00:15]} Kf7 {[%emt 00:00:03]
[%clk 00:00:12]} 38. Kg2 {[%emt 00:00:03] [%clk 00:00:15]} Bh6 {[%emt 00:00:03]
[%clk 00:00:11]} 39. Bxh6 {[%emt 00:00:05] [%clk 00:00:12]} Qxh6 {[%emt
00:00:01] [%clk 00:00:12]} 40. f4 {[%clk 00:00:14]} Rg8 {[%emt 00:00:07] [%clk
00:00:07]} 41. Kh3 {[%emt 00:00:01] [%clk 00:00:14]} Qg6 {[%emt 00:00:03] [%clk
00:00:06]} 42. Ng2 {[%emt 00:00:09] [%clk 00:00:07]} Qxg4+ {[%emt 00:00:01]
[%clk 00:00:06]} 0-1

[Site "Europe Echecs"]

[Event "Championnat d'Europe de Blitz"]
[Date "2024.12.09"]
[White "Redzisz, Michal"]
[Black "Pultinevicius, Paulius"]
[WhiteElo "2263"]
[BlackElo "2579"]
[Round "11.26"]
[Result "0-1"]
[TimeControl "180+2"]

1. e4 {[%emt 00:05:25] [%clk 00:03:03]} c5 {[%clk 00:03:04]} 2. Nf3 {[%clk
00:03:04]} e6 {[%emt 00:00:01] [%clk 00:03:05]} 3. d4 {[%clk 00:03:05]} cxd4
{[%clk 00:03:07]} 4. Nxd4 {[%emt 00:00:01] [%clk 00:03:06]} Nc6 {[%clk
00:03:08]} 5. Nc3 {[%emt 00:00:04] [%clk 00:03:04]} d6 {[%clk 00:03:10]} 6. Be3
{[%emt 00:00:05] [%clk 00:03:02]} Nf6 {[%emt 00:00:01] [%clk 00:03:11]} 7. Qe2
{[%clk 00:03:02]} Be7 {[%emt 00:00:01] [%clk 00:03:11]} 8. O-O-O {[%emt
00:00:02] [%clk 00:03:03]} Bd7 {[%clk 00:03:12]} 9. g4 {[%emt 00:00:14] [%clk
00:02:51]} Nxd4 {[%emt 00:00:06] [%clk 00:03:09]} 10. Bxd4 {[%emt 00:00:04]
[%clk 00:02:48]} e5 {[%clk 00:03:10]} 11. g5 {[%emt 00:00:18] [%clk 00:02:32]}
exd4 {[%emt 00:00:02] [%clk 00:03:10]} 12. gxf6 {[%clk 00:02:34]} dxc3 {[%emt
00:00:02] [%clk 00:03:10]} 13. fxe7 {[%emt 00:00:01] [%clk 00:02:35]} Qxe7
{[%emt 00:00:05] [%clk 00:03:07]} 14. Qd3 {[%emt 00:00:39] [%clk 00:01:58]}
cxb2+ {[%emt 00:00:02] [%clk 00:03:06]} 15. Kb1 {[%clk 00:01:59]} Bc6 {[%emt
00:00:03] [%clk 00:03:06]} 16. Qc3 {[%emt 00:01:13] [%clk 00:00:48]} Qe5 {[%emt
00:00:02] [%clk 00:03:05]} 17. Rd4 {[%emt 00:00:31] [%clk 00:00:20]} O-O {[%emt
00:00:05] [%clk 00:03:02]} 18. Bh3 {[%clk 00:00:21]} f5 {[%emt 00:00:14] [%clk
00:02:49]} 19. Rg1 {[%emt 00:00:09] [%clk 00:00:14]} fxe4 {[%emt 00:00:05] [%clk
00:02:46]} 20. Qb3+ {[%emt 00:00:07] [%clk 00:00:10]} d5 {[%emt 00:00:05] [%clk
00:02:42]} 21. Bg2 {[%emt 00:00:01] [%clk 00:00:11]} Qxd4 {[%emt 00:00:02] [%clk
00:02:42]} 0-1

[Site "Europe Echecs"]

[Event "Championnat d'Europe de Blitz"]
[Date "2024.12.09"]
[White "Van Foreest, Lucas"]
[Black "Trushko, Andrii"]
[WhiteElo "2520"]
[BlackElo "2143"]
[Round "11.27"]
[Result "1-0"]
[TimeControl "180+2"]

1. e4 {[%emt 00:00:11] [%clk 00:02:53]} c6 {[%clk 00:03:03]} 2. d3 {[%emt
00:00:02] [%clk 00:02:53]} d5 {[%emt 00:00:02] [%clk 00:03:04]} 3. Nd2 {[%clk
00:02:54]} e5 {[%emt 00:00:13] [%clk 00:02:52]} 4. Ngf3 {[%emt 00:00:02] [%clk
00:02:54]} Bd6 {[%emt 00:00:02] [%clk 00:02:53]} 5. d4 {[%clk 00:02:55]} exd4
{[%emt 00:00:09] [%clk 00:02:46]} 6. Bd3 {[%emt 00:00:02] [%clk 00:02:56]} Ne7
{[%emt 00:00:11] [%clk 00:02:37]} 7. O-O {[%emt 00:00:06]} O-O {[%emt 00:00:01]
[%clk 00:02:36]} 8. Nxd4 {[%emt 00:00:01] [%clk 00:02:55]} Bc7 {[%emt 00:00:11]
[%clk 00:02:27]} 9. N4f3 {[%emt 00:00:07] [%clk 00:02:50]} Nd7 {[%emt 00:00:06]
[%clk 00:02:23]} 10. Re1 {[%emt 00:00:07] [%clk 00:02:45]} Re8 {[%emt 00:00:11]
[%clk 00:02:15]} 11. b3 {[%emt 00:00:09] [%clk 00:02:37]} Nc5 {[%emt 00:00:05]
[%clk 00:02:12]} 12. Bb2 {[%emt 00:00:02] [%clk 00:02:37]} dxe4 {[%emt 00:00:03]
[%clk 00:02:10]} 13. Bxe4 {[%emt 00:00:05] [%clk 00:02:34]} Nxe4 {[%emt
00:00:11] [%clk 00:02:02]} 14. Nxe4 {[%emt 00:00:02] [%clk 00:02:34]} Bg4 {[%emt
00:00:05] [%clk 00:01:59]} 15. Qd4 {[%emt 00:00:30] [%clk 00:02:06]} Qxd4 {[%emt
00:00:08] [%clk 00:01:53]} 16. Nxd4 {[%emt 00:00:01] [%clk 00:02:07]} Rad8
{[%emt 00:00:02] [%clk 00:01:53]} 17. h3 {[%emt 00:00:01] [%clk 00:02:07]} Bc8
{[%emt 00:00:02] [%clk 00:01:54]} 18. Rad1 {[%emt 00:00:04] [%clk 00:02:05]} Ng6
{[%emt 00:00:03] [%clk 00:01:53]} 19. Nc5 {[%emt 00:00:16]} Nf4 {[%clk
00:01:52]} 20. h4 {[%emt 00:00:13] [%clk 00:01:43]} h6 {[%emt 00:00:14] [%clk
00:01:39]} 21. g3 {[%emt 00:00:04] [%clk 00:01:41]} Nd5 {[%emt 00:00:02] [%clk
00:01:40]} 22. Kg2 {[%emt 00:00:12] [%clk 00:01:32]} Bb6 {[%emt 00:00:06] [%clk
00:01:36]} 23. Na4 {[%emt 00:00:03] [%clk 00:01:31]} Bc7 {[%emt 00:00:04] [%clk
00:01:35]} 24. c4 {[%emt 00:00:07] [%clk 00:01:26]} Nb4 {[%emt 00:00:05] [%clk
00:01:32]} 25. Rxe8+ {[%emt 00:00:02] [%clk 00:01:25]} Rxe8 {[%emt 00:00:02]
[%clk 00:01:33]} 26. Nc3 {[%clk 00:01:26]} Na6 {[%emt 00:00:04] [%clk 00:01:31]}
27. Nf3 {[%emt 00:00:19] [%clk 00:01:09]} Nc5 {[%emt 00:00:02] [%clk 00:01:32]}
28. Ba3 {[%clk 00:01:10]} Ne6 {[%emt 00:00:02] [%clk 00:01:32]} 29. Ne4 {[%clk
00:01:11]} Rd8 {[%emt 00:00:08] [%clk 00:01:26]} 30. Rxd8+ {[%emt 00:00:01]
[%clk 00:01:12]} Nxd8 {[%clk 00:01:27]} 31. Bd6 {[%emt 00:00:03] [%clk
00:01:11]} Bb6 {[%emt 00:00:02] [%clk 00:01:27]} 32. c5 {[%clk 00:01:13]} Ba5
{[%emt 00:00:01] [%clk 00:01:27]} 33. a3 {[%emt 00:00:04] [%clk 00:01:11]} Ne6
{[%emt 00:00:05] [%clk 00:01:24]} 34. b4 {[%emt 00:00:02] [%clk 00:01:11]} Bd8
{[%emt 00:00:01] [%clk 00:01:25]} 35. Be5 {[%clk 00:01:12]} Bd7 {[%emt 00:00:08]
[%clk 00:01:18]} 36. Bc3 {[%emt 00:00:02] [%clk 00:01:12]} Nc7 {[%emt 00:00:05]
[%clk 00:01:15]} 37. Nd6 {[%emt 00:00:04] [%clk 00:01:10]} Nb5 {[%emt 00:00:06]
[%clk 00:01:11]} 38. Be5 {[%emt 00:00:01] [%clk 00:01:11]} Nxd6 {[%emt 00:00:02]
[%clk 00:01:11]} 39. Bxd6 {[%emt 00:00:01] [%clk 00:01:12]} f6 {[%emt 00:00:03]
[%clk 00:01:10]} 40. Nd2 {[%emt 00:00:04] [%clk 00:01:10]} Be6 {[%emt 00:00:02]
[%clk 00:01:10]} 41. Kf3 {[%emt 00:00:02] [%clk 00:01:09]} Kf7 {[%clk 00:01:11]}
42. Nf1 {[%emt 00:00:02] [%clk 00:01:10]} Bd5+ {[%emt 00:00:03] [%clk 00:01:11]}
43. Ke3 {[%emt 00:00:01] [%clk 00:01:11]} h5 {[%emt 00:00:03] [%clk 00:01:11]}
44. Kd4 {[%clk 00:01:12]} Be6 {[%emt 00:00:12] [%clk 00:01:01]} 45. Ne3 {[%clk
00:01:13]} g5 {[%emt 00:00:02] [%clk 00:01:02]} 46. Bb8 {[%emt 00:00:03] [%clk
00:01:12]} a6 {[%emt 00:00:02] [%clk 00:01:01]} 47. Ke4 {[%emt 00:00:02] [%clk
00:01:12]} gxh4 {[%emt 00:00:10] [%clk 00:00:54]} 48. gxh4 {[%clk 00:01:13]} f5+
{[%emt 00:00:01] [%clk 00:00:55]} 49. Nxf5 {[%emt 00:00:04] [%clk 00:01:11]}
Bxf5+ {[%emt 00:00:01] [%clk 00:00:56]} 50. Kxf5 {[%emt 00:00:01] [%clk
00:01:11]} Bxh4 {[%emt 00:00:01] [%clk 00:00:57]} 51. Bg3 {[%emt 00:00:11] [%clk
00:01:02]} Bf6 {[%emt 00:00:01] [%clk 00:00:58]} 52. Be5 {[%clk 00:01:03]} Bd8
{[%emt 00:00:13] [%clk 00:00:47]} 53. f3 {[%emt 00:00:02] [%clk 00:01:02]} Bh4
{[%emt 00:00:04] [%clk 00:00:45]} 54. Bb2 {[%emt 00:00:05] [%clk 00:01:00]} Be7
{[%emt 00:00:12] [%clk 00:00:34]} 55. Bc3 {[%emt 00:00:02] [%clk 00:01:00]} a5
{[%emt 00:00:05] [%clk 00:00:32]} 56. bxa5 {[%emt 00:00:09] [%clk 00:00:53]}
Bxc5 {[%emt 00:00:02] [%clk 00:00:33]} 57. Kg5 {[%clk 00:00:54]} Bxa3 {[%emt
00:00:02] [%clk 00:00:33]} 58. Kxh5 {[%emt 00:00:01] [%clk 00:00:55]} Be7 {[%emt
00:00:03] [%clk 00:00:31]} 59. f4 {[%emt 00:00:03] [%clk 00:00:54]} Bf6 {[%emt
00:00:02] [%clk 00:00:31]} 60. Bxf6 {[%emt 00:00:09] [%clk 00:00:47]} Kxf6
{[%emt 00:00:01] [%clk 00:00:32]} 61. Kg4 {[%clk 00:00:48]} c5 {[%emt 00:00:02]
[%clk 00:00:32]} 62. Kf3 {[%emt 00:00:03] [%clk 00:00:46]} Kf5 {[%emt 00:00:06]
[%clk 00:00:29]} 63. Ke3 {[%emt 00:00:01] [%clk 00:00:47]} Ke6 {[%emt 00:00:13]
[%clk 00:00:18]} 64. Kd3 {[%clk 00:00:48]} Kd5 {[%emt 00:00:03] [%clk 00:00:17]}
65. Kc3 {[%clk 00:00:50]} b5 {[%emt 00:00:12] [%clk 00:00:08]} 66. axb6 {[%emt
00:00:14] [%clk 00:00:37]} 1-0

[Site "Europe Echecs"]